Cogmind - Beta 15 @@@ ROGUE MODE // 2025.05.29 @ 18:10:11 Player: Rohain Result: Self-destructed Performance ------------- Evolutions (7) 3500 Regions Visited (13) 2600 Robots Destroyed (77) 385 Value Destroyed (4297) 4297 Prototype IDs (7) 140 Alien Tech Used (0) 0 Bonus (1688) 1688 TOTAL SCORE: 12610 Bonus ------- High Alert Combat Kills 374 Follower Combat Kills 446 Entered Garrisons 400 Entered DSFs 500 Friendly Fire -32 Cogmind --------- Core Integrity 835/1300 Matter 265/300 Energy 49/100 System Corruption 5% Temperature Warm (159) Movement Core (650) Ox12 Location -3/Research Parts ------- > --- POWER (2) -------- (None) > --- PROPULSION (6) --- (None) > --- UTILITY (10) ----- Advanced Coolant Injector Advanced Coolant Injector Large Storage Unit Core Analyzer Improved Armor Integrity Analyzer > --- WEAPON (3) ------- Variable Charge Gun Dispersion Rifle Dispersion Rifle > --- INVENTORY (15) --- Large Storage Unit Variable Charge Gun Dispersion Rifle Heavy Gauss Cannon Peak State ------------ > --- POWER ------------ Light Antimatter Reactor Light Antimatter Reactor > --- PROPULSION ------- Carbon-fiber Leg Thunder Leg Thunder Leg Thunder Leg Thunder Leg Advanced VSS Leg > --- UTILITY ---------- Advanced Heat Sink Advanced Heat Sink Advanced Coolant Injector Advanced Coolant Injector Large Storage Unit Advanced Visual Processing Unit Core Analyzer Improved Armor Integrity Analyzer Improved Armor Integrity Analyzer > --- WEAPON ----------- Plasma Rifle Plasma Rifle Wave Gun > --- INVENTORY -------- Light Angular Momentum Engine Armored Leg Myomer Leg Advanced VSS Leg Large Storage Unit Advanced Sensor Array Variable Charge Gun Variable Charge Gun Variable Charge Gun Dispersion Rifle Dispersion Rifle Dispersion Rifle Heavy Gauss Cannon [Rating: 117] Favorites ----------- Power Micro Nuclear Core Engine Ion Engine Power Core Micro Nuclear Core Reactor Light Antimatter Reactor Propulsion Aluminum Leg Treads Medium Treads Leg Aluminum Leg Utility Advanced Heat Sink Device Advanced Heat Sink Storage Large Storage Unit Processor Core Analyzer Protection Improved Light Armor Plating Weapon Cooled Pulse Rifle Energy Gun Cooled Pulse Rifle Energy Cannon Nova Cannon Ballistic Gun Railgun Ballistic Cannon Gauss Cannon Launcher Grenade Launcher Build | -11 -10 -10 -10 -9 -8 -8 -7 -6 -5 -5 -4 -4 -3 ------- Run | Yrd Mat Min Exi Min Mat Gar Fac Fac Fac Gar Fac DSF Res Slots Evolved 14 | . . . . . 4 . 2 2 2 . 2 . 2 Power 1 | . . . . . . . . . . . . . 1 Propulsion 4 | . . . . . 2 . 1 . . . . . 1 Utility 8 | . . . . . 2 . 1 2 2 . 1 . . Weapon 1 | . . . . . . . . . . . 1 . . Parts Attached 97 | 5 4 1 . 6 2 7 8 9 4 11 . 25 15 Power 13 | 1 . . . 1 . . . 2 1 . . 3 5 Engine 4 | 1 . . . . . . . 2 . . . 1 . Core 3 | . . . . 1 . . . . 1 . . . 1 Reactor 6 | . . . . . . . . . . . . 2 4 Propulsion 36 | 2 1 . . 2 . 6 2 2 . 7 . 10 4 Treads 1 | . . . . . . . 1 . . . . . . Leg 35 | 2 1 . . 2 . 6 1 2 . 7 . 10 4 Wheel . | . . . . . . . . . . . . . . Hover . | . . . . . . . . . . . . . . Flight . | . . . . . . . . . . . . . . Utility 27 | 1 2 1 . 1 2 1 4 3 2 4 . 4 2 Device 13 | . 1 . . . 1 1 1 2 2 2 . 2 1 Storage 3 | 1 1 . . 1 . . . . . . . . . Processor 7 | . . 1 . . . . 3 . . . . 2 1 Hackware . | . . . . . . . . . . . . . . Protection 4 | . . . . . 1 . . 1 . 2 . . . Artifact . | . . . . . . . . . . . . . . Weapon 21 | 1 1 . . 2 . . 2 2 1 . . 8 4 Energy Gun 13 | 1 . . . . . . 2 2 1 . . 3 4 Energy Cannon 2 | . . . . . . . . . . . . 2 . Ballistic Gun 1 | . . . . . . . . . . . . 1 . Ballistic Cannon 4 | . . . . 2 . . . . . . . 2 . Launcher 1 | . 1 . . . . . . . . . . . . Special Weapon . | . . . . . . . . . . . . . . Impact Weapon . | . . . . . . . . . . . . . . Slashing Weapon . | . . . . . . . . . . . . . . Piercing Weapon . | . . . . . . . . . . . . . . Special Melee Weapon . | . . . . . . . . . . . . . . Unidentified Prototypes 7 | . . . . . 1 . 2 2 1 . . . 1 Parts Lost 55 | . . . . . . 3 1 . 1 5 . 16 29 Power 10 | . . . . . . . . . . 1 . 1 8 Propulsion 22 | . . . . . . 2 1 . . 2 . 7 10 Utility 14 | . . . . . . 1 . . 1 1 . 4 7 Weapon 9 | . . . . . . . . . . 1 . 4 4 Highest Loss Streak 16 | . . . . . . 2 1 . 1 2 . 7 16 To Critical Strikes . | . . . . . . . . . . . . . . Average Backups 11 | 1 3 9 9 9 9 11 13 13 14 14 14 11 12 Power 1 | . 1 2 2 2 2 3 2 2 2 1 1 1 1 Propulsion 2 | . . 1 1 1 . . 2 1 3 3 4 4 2 Utility 2 | . . 3 3 2 1 2 2 2 2 2 2 2 1 Weapon 5 | 1 2 3 3 3 4 4 5 6 6 6 7 4 6 Tool/Special . | . . . . . . . . . . . . . . Unused Backups 25 | . . . . 1 . 1 3 2 2 6 . 6 4 Power 4 | . . . . . . . 2 1 1 . . . . Propulsion 5 | . . . . . . . 1 . . 3 . 1 . Utility 1 | . . . . . . . . . . . . . 1 Weapon 15 | . . . . 1 . 1 . 1 1 3 . 5 3 Tool/Special . | . . . . . . . . . . . . . . Average Slot Usage (%) 86 | . 87 85 85 85 87 86 85 92 91 85 79 87 88 Engine 3 | . 14 14 14 7 . . . 4 1 2 5 2 . Core 4 | . . . . 7 9 9 6 1 3 2 . . 1 Leg 27 | . 28 28 28 28 35 35 29 27 23 21 21 21 26 Device 11 | . 4 12 . . 10 8 9 10 21 18 22 20 17 Storage 8 | . 14 14 14 14 9 9 7 6 5 5 5 5 4 Processor 15 | . . 2 14 14 9 9 18 20 17 17 15 20 17 Protection 1 | . . . . . 5 6 . 6 5 2 . . . Energy Gun 8 | . 14 14 14 14 1 . . 7 10 11 10 7 13 Ballistic Cannon 2 | . . . . . 8 9 6 2 . . . 4 . Peak Build Rating 117 | 5 7 6 6 19 36 34 44 69 83 85 81 110 117 Average Rating 49 | 3 6 6 6 9 30 27 36 56 79 77 77 94 110 On Entrance 38 | . 5 6 6 6 15 32 22 44 69 79 75 81 105 Naked Turns . | . . . . . . . . . . . . . . Heaviest Build 65 | 12 21 18 17 37 39 37 35 44 49 65 44 56 61 Greatest Support 127 | 20 20 20 20 30 50 55 63 85 85 85 82 115 127 Greatest Overweight (x) 1 | . 1 . . 1 . . . . . . . . . Average Overweight (x) . | . . . . . . . . . . . . . . Largest Inventory Capacity 15 | 8 10 10 10 15 15 15 15 15 15 15 15 15 15 Average Capacity 13 | 7 8 10 10 11 15 15 15 15 15 15 15 15 15 Most Carried 15 | 4 9 10 9 14 13 15 15 15 15 15 15 15 14 Average Carried 12 | 1 4 9 9 10 11 14 14 14 14 14 14 11 12 Final Capacity 15 | 8 10 10 10 15 15 15 15 15 15 15 15 15 15 Final Carried 15 | 3 9 9 9 14 13 13 15 15 15 15 14 15 4 Class Distribution -------------------- 33% | Mutant 23% | Scavenger-Mutant 17% | Scavenger-Skirmisher 12% | Scavenger-Gunner 11% | Skirmisher Dominant Class ---------------- Mutant | -10/Materials Mutant | -10/Mines Mutant | -10/Exiles Mutant | -9/Mines Mutant | -8/Materials Scavenger-Mutant | -8/Garrison Scavenger-Mutant | -7/Factory Scavenger-Skirmisher | -6/Factory Scavenger-Skirmisher | -5/Factory Scavenger-Skirmisher | -5/Garrison Scavenger-Skirmisher | -4/Factory Scavenger-Gunner | -4/DSF Scavenger-Gunner | -3/Research Resources | -11 -10 -10 -10 -9 -8 -8 -7 -6 -5 -5 -4 -4 -3 ----------- Run | Yrd Mat Min Exi Min Mat Gar Fac Fac Fac Gar Fac DSF Res Matter Collected 2381 | 109 94 53 . 141 112 513 214 136 77 227 . 567 138 Remotely . | . . . . . . . . . . . . . . Salvage Created 3406 | . . . . 240 49 377 188 189 77 941 . 548 797 Parts 140 | . . . . 12 4 15 10 5 3 33 . 26 32 Haulers Intercepted . | . . . . . . . . . . . . . . Recyclers Shooed 1 | . . . . . . . . . . . . . 1 Parts Field Recycled . | . . . . . . . . . . . . . . Retrieved Matter . | . . . . . . . . . . . . . . Parts Self-Destructed . | . . . . . . . . . . . . . . Prevented . | . . . . . . . . . . . . . . Kills | -11 -10 -10 -10 -9 -8 -8 -7 -6 -5 -5 -4 -4 -3 ------- Run | Yrd Mat Min Exi Min Mat Gar Fac Fac Fac Gar Fac DSF Res Combat Hostiles Destroyed 72 | . . . . 6 2 12 4 3 1 20 . 10 14 Guns 38 | . . . . 1 . . . 2 1 18 . 4 12 Cannons 26 | . . . . 2 2 12 4 . . . . 6 . AOE 3 | . . . . 3 . . . . . . . . . Classes Destroyed 14 | . . . . 4 2 2 2 . . 2 . 2 . Worker 2 | . . . . . 1 . . . . . . . 1 Recycler 2 | . . . . 1 . . . . . . . . 1 Watcher 1 | . . . . . . . 1 . . . . . . Swarmer 19 | . . . . 4 1 . . . . 5 . . 9 Cutter 3 | . . . . . . . . . . 3 . . . Grunt 23 | . . . . 1 . 7 . 2 . 10 . 3 . Brawler 3 | . . . . 1 . 2 . . . . . . . Duelist 1 | . . . . . . 1 . . . . . . . Sentry 5 | . . . . . . 1 2 1 1 . . . . Specialist 2 | . . . . . . . . . . . . 2 . Hunter 7 | . . . . . 1 1 . . . 1 . 2 2 Programmer 7 | . . . . . . . 2 . . . . 2 3 Heavy 1 | . . . . . . . . . . . . 1 . Behemoth 1 | . . . . . . . . . . 1 . . . Best Kill Streak 5 | . . . . 4 2 3 2 1 1 4 . 3 5 Combat Bots Only 4 | . . . . 4 1 3 1 1 1 4 . 3 4 Max Kills in Single Turn 3 | . . . . 3 1 2 1 1 1 2 . 1 2 Gunslinging 1 | . . . . . . . . . . 1 . . . Exploded 3 | . . . . 3 . . . . . . . . . Melee . | . . . . . . . . . . . . . . Uniques/NPCs Destroyed . | . . . . . . . . . . . . . . Combat | -11 -10 -10 -10 -9 -8 -8 -7 -6 -5 -5 -4 -4 -3 -------- Run | Yrd Mat Min Exi Min Mat Gar Fac Fac Fac Gar Fac DSF Res Hostile Shots Fired 754 | . 1 . . 11 7 70 50 60 11 124 . 178 242 Missed 238 | . . . . 6 2 23 18 30 2 26 . 52 79 Hits 516 | . 1 . . 5 5 47 32 30 9 98 . 126 163 Melee 15 | . . . . . . 7 . . . 8 . . . Projectile 501 | . 1 . . 5 5 40 32 30 9 90 . 126 163 AOE 3 | . . . . . . . . . . 3 . . . Critical Strikes 22 | . . . . . 1 1 . . . 10 . 7 3 Part Disruptions 1 | . . . . . . . . . . . . 1 . Damage Taken 9287 | . 12 . . 74 94 870 317 343 197 1979 . 2580 2821 Core 1493 | . . . . . . 152 52 60 . 320 . 444 465 Absorbed by Shields 53 | . . . . . . . . . . . . 53 . Ignored by Resistances 86 | . . . . . . . . . . 86 . . . Regen/Repaired (Parts) 147 | . . . . . . . 147 . . . . . . Core Remaining (%) 83 | 100 . . . 100 . 72 92 92 . 68 . 61 . Volleys Fired 302 | 1 . . . 10 10 72 21 20 10 77 . 39 42 Largest 3 | 1 . . . 2 1 1 1 2 2 2 . 3 3 Hottest 251 | 40 . . . 88 40 40 40 40 40 101 . 191 251 Shots Fired 534 | 1 . . . 11 10 72 21 35 20 153 . 88 123 Gun 367 | 1 . . . 10 . . . 30 20 153 . 30 123 Cannon 167 | . . . . 1 10 72 21 5 . . . 58 . Launcher . | . . . . . . . . . . . . . . Special . | . . . . . . . . . . . . . . Kinetic 177 | . . . . 1 10 72 21 5 . . . 68 . Thermal 345 | . . . . . . . . 30 20 153 . 19 123 Explosive . | . . . . . . . . . . . . . . Electromagnetic 12 | 1 . . . 10 . . . . . . . 1 . Robot Hit Streak 16 | . . . . 3 5 9 5 8 3 16 . 9 11 Robot Miss Streak 7 | . . . . 1 3 3 1 2 7 3 . 7 7 Penetration Max 1 | . . . . 1 . 1 1 . . . . 1 . Secondary Targets 6 | . . . . . . . . . . 3 . . 3 Max Gunslinging Chain 1 | . . . . . . . . . . 1 . . 1 Shots Hit Robots 291 | . . . . 8 6 38 13 25 9 73 . 51 68 Core Hits 148 | . . . . 9 3 17 7 7 5 36 . 29 35 Critical Kills 2 | . . . . 1 . . . . . 1 . . . Critical Parts Destroyed 3 | . . . . . . . . . . 3 . . . Critical Strikes 24 | . . . . 1 1 4 . 5 . 5 . 5 3 Burn 10 | . . . . . . . . 5 . 1 . 1 3 Destroy 5 | . . . . 1 . . . . . 4 . . . Blast 8 | . . . . . 1 4 . . . . . 3 . Corrupt 1 | . . . . . . . . . . . . 1 . Melee Attacks . | . . . . . . . . . . . . . . Impact . | . . . . . . . . . . . . . . Slashing . | . . . . . . . . . . . . . . Piercing . | . . . . . . . . . . . . . . Sneak Attacks . | . . . . . . . . . . . . . . Combat Hostiles . | . . . . . . . . . . . . . . Follow-up Attacks . | . . . . . . . . . . . . . . Damage Inflicted 7399 | . . . . 220 186 1187 438 478 169 1635 . 1408 1678 Guns 4553 | . . . . 84 . . . 478 169 1635 . 509 1678 Cannons 2759 | . . . . 49 186 1187 438 . . . . 899 . Explosions 87 | . . . . 87 . . . . . . . . . Melee . | . . . . . . . . . . . . . . Ramming . | . . . . . . . . . . . . . . Kinetic 2889 | . . . . 49 186 1187 438 . . . . 1029 . Thermal 4419 | . . . . 87 . . . 478 169 1635 . 372 1678 Explosive . | . . . . . . . . . . . . . . Electromagnetic 91 | . . . . 84 . . . . . . . 7 . Impact . | . . . . . . . . . . . . . . Slashing . | . . . . . . . . . . . . . . Piercing . | . . . . . . . . . . . . . . Highest Corruption 5 | . . . . . . 2 1 . . . . 3 5 Average Corruption 1 | . . . . . . 2 1 . . . . 2 2 Corruption Purged . | . . . . . . . . . . . . . . Corruption Blocked . | . . . . . . . . . . . . . . Effects 14 | . . . . . . 1 6 . . . . 1 6 Message Errors 2 | . . . . . . . . . . . . . 2 Matter Fused 7 | . . . . . . . 5 . . . . 1 1 Data Loss (minor) 3 | . . . . . . 1 1 . . . . . 1 Data Loss (major) 1 | . . . . . . . . . . . . . 1 Weapon Failures 1 | . . . . . . . . . . . . . 1 Overload Shots . | . . . . . . . . . . . . . . Overflow Damage 54 | . . . . . . 42 12 . . . . . . Projectiles 54 | . . . . . . 42 12 . . . . . . Explosions . | . . . . . . . . . . . . . . Melee . | . . . . . . . . . . . . . . Knockbacks 18 | . . . . . 2 8 2 . . . . 6 . Impact . | . . . . . . . . . . . . . . Kinetic 18 | . . . . . 2 8 2 . . . . 6 . Secondary . | . . . . . . . . . . . . . . Self-Inflicted Damage 30 | . . . . 30 . . . . . . . . . Shots 1 | . . . . 1 . . . . . . . . . Rammed . | . . . . . . . . . . . . . . Targets Rammed . | . . . . . . . . . . . . . . Kicked . | . . . . . . . . . . . . . . Crushed . | . . . . . . . . . . . . . . Highest Temperature 262 | . . . . 33 25 87 252 . . 262 . 6 196 Average Temperature 82 | . . . . 11 16 43 88 . . 160 . 4 99 Received Heat Transfer 2000 | . 6 . . 6 27 324 60 90 54 944 . 279 210 Siege Activations . | . . . . . . . . . . . . . . Martial Activations . | . . . . . . . . . . . . . . Shielding Activations . | . . . . . . . . . . . . . . Robots Disrupted . | . . . . . . . . . . . . . . Combat Hostiles . | . . . . . . . . . . . . . . Robots Corrupted . | . . . . . . . . . . . . . . Combat Hostiles . | . . . . . . . . . . . . . . Parts Fried . | . . . . . . . . . . . . . . Impact Corruptions . | . . . . . . . . . . . . . . Robots Melted 5 | . . . . . . . . 1 . 2 . . 2 Combat Hostiles 5 | . . . . . . . . 1 . 2 . . 2 Parts Melted 25 | . . . . 1 . . . 3 . 13 . . 8 Heat Transferred 8825 | . . . . 100 . . . 1295 333 3108 . 555 3434 Parts Sabotaged . | . . . . . . . . . . . . . . Parts Stolen . | . . . . . . . . . . . . . . Parts Stripped . | . . . . . . . . . . . . . . Power Chain Reactions 1 | . . . . 1 . . . . . . . . . Alert | -11 -10 -10 -10 -9 -8 -8 -7 -6 -5 -5 -4 -4 -3 ------- Run | Yrd Mat Min Exi Min Mat Gar Fac Fac Fac Gar Fac DSF Res Maximum Alert Level 3 | . . . . . . 1 . . . 3 2 2 1 Low Security (%) 67 | 100 100 100 . 100 100 50 100 100 100 25 . . 23 Level 1 16 | . . . . . . 49 . . . 10 . 46 76 Level 2 7 | . . . . . . . . . . 22 100 53 . Level 3 8 | . . . . . . . . . . 41 . . . Level 4 . | . . . . . . . . . . . . . . Level 5 . | . . . . . . . . . . . . . . High Security . | . . . . . . . . . . . . . . Max Security . | . . . . . . . . . . . . . . Sterilizations 1 | . . . . . . . . . . . . 1 . Peak Influence 1079 | . . . . 92 133 345 180 66 30 1079 566 488 308 Initial 566 | . . . . . 2 79 180 . . . 566 389 274 Average 186 | . . . . 22 38 209 33 16 2 543 561 427 222 Influence Increases 3105 | . . . . 277 163 376 180 137 44 1199 . 259 470 Destroy 0b10 Robot/C 1720 | . . . . 120 100 280 80 60 20 580 . 200 280 Destroy 0b10 Robot/NC 25 | . . . . 5 5 . 5 . . . . . 10 Destroy Leader 282 | . . . . 20 30 30 42 30 10 30 . 40 50 Allied During Kill 67 | . . . . . 8 6 . . . 53 . . . Trap Triggered on 0b10 20 | . . . . 10 . 10 . . . . . . . Successful Hack 34 | . . . . . . . 4 16 14 . . . . Disable Machine 150 | . . . . . . 15 45 15 . 75 . . . Anti-Garrison Action 250 | . . . . . . . . . . 250 . . . Destroy Structure 152 | . . . . 2 5 35 4 1 . 91 . 4 10 Partial Spotted 15 | . . . . . 15 . . . . . . . . Lose Combat Pursuer 390 | . . . . 120 . . . 15 . 120 . 15 120 Influence Decreases 2953 | . . . . 269 48 154 525 137 44 120 523 327 806 Entered New Map 1109 | . . . . . 6 44 165 . . . 513 167 214 Time Decay 1158 | . . . . 269 42 . 360 137 38 . 10 . 302 Lost Part 526 | . . . . . . 30 . . 6 40 . 160 290 Lost Ally 160 | . . . . . . 80 . . . 80 . . . Squads Dispatched 12 | . . . . 1 . . 3 2 1 . . 2 3 Investigation . | . . . . . . . . . . . . . . Extermination 4 | . . . . . . . 3 . . . . . 1 Reinforcement 6 | . . . . . . . . 1 1 . . 2 2 Assault 1 | . . . . 1 . . . . . . . . . Garrison 1 | . . . . . . . . 1 . . . . . Intercept . | . . . . . . . . . . . . . . Searches Triggered . | . . . . . . . . . . . . . . Construction Impeded . | . . . . . . . . . . . . . . Haulers Reinforced 1 | . . . . . . . . . . . . . 1 Active Scanning Responses . | . . . . . . . . . . . . . . Cargo Convoy Interrupts 1 | . . . . . . . . . . . . . 1 Stealth | -11 -10 -10 -10 -9 -8 -8 -7 -6 -5 -5 -4 -4 -3 --------- Run | Yrd Mat Min Exi Min Mat Gar Fac Fac Fac Gar Fac DSF Res Distress Signals 4 | . . . . 1 2 . . 1 . . . . . Communications Jammed 1 | . . . . . . . . . 1 . . . . Distress Signals 1 | . . . . . . . . . 1 . . . . Times Spotted 146 | . 2 3 . 13 9 13 6 9 9 37 . 13 32 Peak Tracking Total 11 | . 2 1 . 4 5 4 3 3 3 4 . 3 11 Tactical Retreats 16 | . . . . 6 . . . 1 . 5 . 1 3 Traps | -11 -10 -10 -10 -9 -8 -8 -7 -6 -5 -5 -4 -4 -3 ------- Run | Yrd Mat Min Exi Min Mat Gar Fac Fac Fac Gar Fac DSF Res Traps Triggered 9 | . . . . . . . 1 1 . 4 . 3 . Indirectly . | . . . . . . . . . . . . . . Trap Hack Attempts . | . . . . . . . . . . . . . . Triggered . | . . . . . . . . . . . . . . Disarmed . | . . . . . . . . . . . . . . Reprogrammed . | . . . . . . . . . . . . . . Reused 2 | . . . . 1 . 1 . . . . . . . Traps Extracted . | . . . . . . . . . . . . . . Installed 3 | . . . . 2 . 1 . . . . . . . Triggered 2 | . . . . 1 . 1 . . . . . . . Most Traps Carried 3 | . . . . 3 3 3 2 1 1 1 . . . Machines | -11 -10 -10 -10 -9 -8 -8 -7 -6 -5 -5 -4 -4 -3 ---------- Run | Yrd Mat Min Exi Min Mat Gar Fac Fac Fac Gar Fac DSF Res Machines Disabled 14 | . . . . . . 1 3 1 . 9 . . . Max in Single Turn 1 | . . . . . . 1 1 1 . 1 . . . Garrison Access 1 | . . . . . . . . 1 . . . . . Garrison Relay 3 | . . . . . . . . . . 3 . . . Machines Repaired . | . . . . . . . . . . . . . . Machines Dismantled . | . . . . . . . . . . . . . . Machines Sabotaged . | . . . . . . . . . . . . . . Overloaded Fab Kills . | . . . . . . . . . . . . . . Hacking | -11 -10 -10 -10 -9 -8 -8 -7 -6 -5 -5 -4 -4 -3 --------- Run | Yrd Mat Min Exi Min Mat Gar Fac Fac Fac Gar Fac DSF Res Machines Accessed 11 | . . . 1 1 1 . 1 3 2 1 1 . . Terminals 4 | . . . . . . . . 2 . 1 1 . . Fabricators 1 | . . . . . . . . . 1 . . . . Repair Stations 1 | . . . . . . . 1 . . . . . . Recycling Units . | . . . . . . . . . . . . . . Scanalyzers . | . . . . . . . . . . . . . . Garrison Access 3 | . . . . . 1 . . 1 1 . . . . Total Hacks 23 | . . . 8 1 1 . 2 7 2 1 1 . . Successful 17 | . . . 8 1 1 . 2 3 1 . 1 . . Failed 6 | . . . . . . . . 4 1 1 . . . Catastrophic 1 | . . . . . . . . . . 1 . . . Database Lockouts . | . . . . . . . . . . . . . . Manual 7 | . . . . . . . . 6 . 1 . . . Terminals 8 | . . . . . . . . 6 . 1 1 . . Fabricators 1 | . . . . . . . . . 1 . . . . Repair Stations 2 | . . . . . . . 2 . . . . . . Recycling Units . | . . . . . . . . . . . . . . Scanalyzers . | . . . . . . . . . . . . . . Garrison Access 3 | . . . . . 1 . . 1 1 . . . . Terminal Hacks 10 | . . . 8 1 . . . . . . 1 . . Record 8 | . . . 8 . . . . . . . . . . Open Door 1 | . . . . 1 . . . . . . . . . Open DSF 1 | . . . . . . . . . . . 1 . . Fabricator Hacks . | . . . . . . . . . . . . . . Repair Station Hacks 2 | . . . . . . . 2 . . . . . . Scan Component 1 | . . . . . . . 1 . . . . . . Repair 1 | . . . . . . . 1 . . . . . . Recycling Unit Hacks . | . . . . . . . . . . . . . . Scanalyzer . | . . . . . . . . . . . . . . Garrison Access Hacks 3 | . . . . . 1 . . 1 1 . . . . Unlock Access 2 | . . . . . 1 . . . 1 . . . . Seal Access 1 | . . . . . . . . 1 . . . . . Unauthorized Hacks 2 | . . . . . . . . 2 . . . . . Terminals 2 | . . . . . . . . 2 . . . . . Botnet 1 | . . . . . . . . 1 . . . . . Operators 1 | . . . . . . . . 1 . . . . . Fabricators . | . . . . . . . . . . . . . . Repair Stations . | . . . . . . . . . . . . . . Recycling Units . | . . . . . . . . . . . . . . Scanalyzers . | . . . . . . . . . . . . . . Garrison Access . | . . . . . . . . . . . . . . Data Cores Recovered . | . . . . . . . . . . . . . . Used . | . . . . . . . . . . . . . . Hacking Detections 6 | . . . . . 1 . 1 2 1 1 . . . Full Trace Events . | . . . . . . . . . . . . . . Feedback Events . | . . . . . . . . . . . . . . Feedback Blocked . | . . . . . . . . . . . . . . Robot Schematics Acquired . | . . . . . . . . . . . . . . Robots Built . | . . . . . . . . . . . . . . Authchips . | . . . . . . . . . . . . . . Time . | . . . . . . . . . . . . . . Total Robot Build Rating . | . . . . . . . . . . . . . . Part Schematics Acquired . | . . . . . . . . . . . . . . Parts Built . | . . . . . . . . . . . . . . Authchips . | . . . . . . . . . . . . . . Time . | . . . . . . . . . . . . . . Total Part Build Rating . | . . . . . . . . . . . . . . Parts Repaired 1 | . . . . . . . 1 . . . . . . Time 44 | . . . . . . . 44 . . . . . . Parts Recycled . | . . . . . . . . . . . . . . Recycled Matter . | . . . . . . . . . . . . . . Retrieved Matter . | . . . . . . . . . . . . . . Retrieved Components . | . . . . . . . . . . . . . . Parts Scanalyzed . | . . . . . . . . . . . . . . Part Schematics Acquired . | . . . . . . . . . . . . . . Parts Damaged . | . . . . . . . . . . . . . . Bothacking | -11 -10 -10 -10 -9 -8 -8 -7 -6 -5 -5 -4 -4 -3 ------------ Run | Yrd Mat Min Exi Min Mat Gar Fac Fac Fac Gar Fac DSF Res Used RIF Installer . | . . . . . . . . . . . . . . Robots Hacked . | . . . . . . . . . . . . . . Non-combat . | . . . . . . . . . . . . . . Combat . | . . . . . . . . . . . . . . Robot Hacks Applied . | . . . . . . . . . . . . . . Relay Couplers Released 14 | . . . . . . . . . . 14 . . . Machine Destruction 14 | . . . . . . . . . . 14 . . . Fabnet Peak Effective % . | . . . . . . . . . . . . . . Robots Rewired 7 | . . . . . . 3 . . . 4 . . . Allies Hacked . | . . . . . . . . . . . . . . Hacks Repelled . | . . . . . . . . . . . . . . Allies | -11 -10 -10 -10 -9 -8 -8 -7 -6 -5 -5 -4 -4 -3 -------- Run | Yrd Mat Min Exi Min Mat Gar Fac Fac Fac Gar Fac DSF Res Total Allies 8 | . . . . 1 . 3 . . . 4 . . . Largest Group 3 | . . . . 1 1 3 . . . 3 . . . Highest-Rated Group 116 | . . . . 31 31 48 . . . 116 . . . Highest-Rated Ally 116 | . . . . 31 31 31 . . . 116 . . . Initial Warlord ECA Mod 28 | . . . . . . . 1 . . . 6 6 15 Total Orders . | . . . . . . . . . . . . . . Ally Attacks 84 | . . . . . 9 18 . . . 57 . . . Total Damage 2019 | . . . . . 144 216 . . . 1659 . . . Kills 14 | . . . . . 3 2 . . . 9 . . . Allies Corrupted . | . . . . . . . . . . . . . . Allies Melted 1 | . . . . . . . . . . 1 . . . Intel | -11 -10 -10 -10 -9 -8 -8 -7 -6 -5 -5 -4 -4 -3 ------- Run | Yrd Mat Min Exi Min Mat Gar Fac Fac Fac Gar Fac DSF Res Active Infowar (turns) 4740 | . . . . . 139 58 1284 457 483 1321 37 358 603 Optics 3994 | . . . . . . . 1018 457 483 1321 37 358 320 Sensors 2593 | . . . . . 139 58 1169 457 483 4 . . 283 Jamming 286 | . . . . . . . . . 204 10 13 59 . Robot Analysis Total . | . . . . . . . . . . . . . . Derelict Logs Recovered 3 | . . . . 3 . . . . . . . . . Drone Launches . | . . . . . . . . . . . . . . Drone Recoveries . | . . . . . . . . . . . . . . Exploration | -11 -10 -10 -10 -9 -8 -8 -7 -6 -5 -5 -4 -4 -3 ------------- Run | Yrd Mat Min Exi Min Mat Gar Fac Fac Fac Gar Fac DSF Res Turns Passed 7233 | 58 193 58 503 1033 144 641 1284 457 483 1321 37 358 663 Spaces Moved 4908 | 39 147 44 419 790 88 343 963 304 346 830 31 148 416 Core 2 | 2 . . . . . . . . . . . . . Treads . | . . . . . . . . . . . . . . Legs 4906 | 37 147 44 419 790 88 343 963 304 346 830 31 148 416 Wheels . | . . . . . . . . . . . . . . Hover . | . . . . . . . . . . . . . . Flight . | . . . . . . . . . . . . . . Fastest Speed 50 | 50 120 120 120 120 120 120 120 117 117 116 117 112 114 Average Speed 118 | 116 121 120 120 120 120 120 120 119 117 116 117 116 115 Slowest Speed 190 | 120 190 120 120 190 120 120 120 120 117 117 117 120 120 Overloaded Moves . | . . . . . . . . . . . . . . Propulsion Burnouts . | . . . . . . . . . . . . . . Robots Hopped . | . . . . . . . . . . . . . . Potential Cave-ins . | . . . . . . . . . . . . . . Cave-ins Triggered . | . . . . . . . . . . . . . . Exploration Rate (%) 34 | 3 18 13 87 100 11 33 26 8 11 69 1 89 19 Regions Visited 13 Branch Regions 3 Pre-discovered Areas 1 | . . . . 1 . . . . . . . . . Known Exits Taken 8 | . . 1 1 1 1 . 1 1 1 . 1 . . Unknown Exits Taken 2 | 1 1 . . . . . . . . . . . . Scrap Searched 2 | . . 1 . 1 . . . . . . . . . Spaces Dug 1 | . . . . . . . 1 . . . . . . Terrain Destroyed 16 | . . . . 2 4 . 4 . . . . 6 . Melee . | . . . . . . . . . . . . . . Projectile 14 | . . . . . 4 . 4 . . . . 6 . AOE 2 | . . . . 2 . . . . . . . . . Terrain Rammed . | . . . . . . . . . . . . . . Walls Destroyed . | . . . . . . . . . . . . . . Machines Disabled . | . . . . . . . . . . . . . . Actions | -11 -10 -10 -10 -9 -8 -8 -7 -6 -5 -5 -4 -4 -3 --------- Run | Yrd Mat Min Exi Min Mat Gar Fac Fac Fac Gar Fac DSF Res Total 5851 | 48 159 49 419 864 117 502 1073 368 404 1034 31 271 512 Wait 287 | . 4 4 . 35 6 14 51 20 39 64 . 21 29 Move 4894 | 38 146 43 418 789 88 342 962 303 345 827 30 147 416 Hop . | . . . . . . . . . . . . . . Pick Up 72 | 4 4 . . 8 3 2 12 5 2 9 . 19 4 Fast Attach 44 | 4 2 . . 1 . 2 8 3 3 6 . 10 5 Attach 55 | 1 . 1 . 5 7 2 3 4 . 4 1 12 15 Detach 15 | . 1 1 . 5 3 1 1 1 . 1 . 1 . Swap 30 | . 2 . . 3 . 5 3 3 1 8 . 5 . Drop 67 | . . . . 6 . 6 12 9 4 15 . 14 1 Fire 302 | 1 . . . 10 10 72 21 20 10 77 . 39 42 Melee . | . . . . . . . . . . . . . . Ram . | . . . . . . . . . . . . . . Kick . | . . . . . . . . . . . . . . Crush . | . . . . . . . . . . . . . . Escape Stasis 11 | . . . . . . . . . . 8 . 3 . Rewire 71 | . . . 1 . . 55 . . . 15 . . . Trap 3 | . . . . 2 . 1 . . . . . . . Miscellaneous . | . . . . . . . . . . . . . . Route ------- -11/Scrapyard -10/Materials -10/Mines (discovered 2 exits: [*Mat] / *Exi) -10/Exiles (discovered 2 exits: *Min x2) -9/Mines (discovered 2 exits: *Mat x2) -8/Materials (discovered 2 exits: Fac / Gar) -8/Garrison (discovered 2 exits: *Fac / *Mat) -7/Factory (discovered 2 exits: *Fac x2) -6/Factory (discovered 2 exits: *Fac x2) -5/Factory -5/Garrison (discovered 3 exits: *Fac x2 / *Fac) -4/Factory -4/DSF -3/Research History --------- Turn | Location | Event 24 | -11/Scrapyard | Discovered new exit (range 16) 59 | -11/Scrapyard | Entered Materials 158 | -10/Materials | Met 8R-AWN 196 | -10/Materials | Discovered new exit (range 15) 252 | -10/Materials | Entered Mines 253 | -10/Mines | Followed 8R-AWN into the Mines 279 | -10/Mines | Discovered new exit (range 10) 302 | -10/Mines | Discovered new exit (range 5) 307 | -10/Mines | Met a Derelict bent on vengeance 310 | -10/Mines | Identified exit to Exiles 310 | -10/Mines | Entered Exiles 326 | -10/Exiles | Discovered new exit (range 15) 330 | -10/Exiles | Build established: Mutant 340 | -10/Exiles | Welcomed by 8R-AWN 361 | -10/Exiles | Met EX-HEX 398 | -10/Exiles | Met EX-BIN 563 | -10/Exiles | Met EX-DEC 620 | -10/Exiles | Visited The Gauntlet 801 | -10/Exiles | Discovered new exit (range 10) 812 | -10/Exiles | Identified exit to Mines 813 | -10/Exiles | Entered Mines 825 | -9/Mines | Learned 2 Materials zone layouts 849 | -9/Mines | Assembled infested the area 854 | -9/Mines | Assisted by a Guerilla fighting off Assembled 989 | -9/Mines | Found a hidden stash of uninstalled traps 1216 | -9/Mines | Discovered new exit (range 7) 1223 | -9/Mines | Identified exit to Materials 1313 | -9/Mines | Met a Derelict who couldn't figure out how to use a Trap Extractor 1491 | -9/Mines | Discovered exit to Materials (range 8) 1734 | -9/Mines | Found a damaged Exp. Sensor Array with a note attached 1737 | -9/Mines | Found Prototype Device 1809 | -9/Mines | Met a Derelict testing a Signal Generator 1846 | -9/Mines | Entered Materials 1846 | -8/Materials | Accompanied by 1 ally 1846 | -8/Materials | Evolved 4 slots: Propulsion x2, Utility x2 1847 | -8/Materials | Identified exit to Factory 1851 | -8/Materials | Identified Exp. Sensor Array 1990 | -8/Materials | Identified exit to Garrison 1990 | -8/Materials | Entered Garrison 1990 | -8/Garrison | Accompanied by 1 ally 2006 | -8/Garrison | Triggered checkpoint 2073 | -8/Garrison | Discovered new exit (range 3) 2074 | -8/Garrison | Identified exit to Materials 2198 | -8/Garrison | Triggered checkpoint 2301 | -8/Garrison | Triggered checkpoint 2415 | -8/Garrison | Triggered checkpoint 2627 | -8/Garrison | Discovered exit to Factory (range 3) 2631 | -8/Garrison | Entered Factory 2631 | -7/Factory | Evolved 2 slots: Propulsion x1, Utility x1 2776 | -7/Factory | Build established: Scavenger-Mutant 3005 | -7/Factory | Repaired Gauss Cannon 3437 | -7/Factory | Discovered new exit (range 8) 3448 | -7/Factory | Identified exit to Factory 3610 | -7/Factory | Discovered exit to Factory (range 19) 3915 | -7/Factory | Entered another Factory area 3915 | -6/Factory | Evolved 2 slots: Utility x2 3931 | -6/Factory | Discovered new exit (range 9) 3940 | -6/Factory | Identified exit to Factory 4101 | -6/Factory | Garrison activated, responded to threat 4240 | -6/Factory | Discovered exit to Factory (range 13) 4372 | -6/Factory | Entered another Factory area 4372 | -5/Factory | Evolved 2 slots: Utility x2 4793 | -5/Factory | Build established: Scavenger-Skirmisher 4839 | -5/Factory | Identified exit to Garrison 4855 | -5/Factory | Entered Garrison 4861 | -5/Garrison | Spotted B-75 Beast 4880 | -5/Garrison | Rewired B-86 Titan 4891 | -5/Garrison | Destroyed B-75 Beast 4902 | -5/Garrison | Found Hvy. Reflective Plating 5059 | -5/Garrison | Triggered checkpoint 5178 | -5/Garrison | Build established: Skirmisher 5195 | -5/Garrison | Garrison Relay disabled 5383 | -5/Garrison | Triggered checkpoint 5419 | -5/Garrison | Triggered checkpoint 5539 | -5/Garrison | Triggered checkpoint 5593 | -5/Garrison | Garrison Relay disabled 5607 | -5/Garrison | Triggered checkpoint 5662 | -5/Garrison | Discovered new exit (range 5) 5666 | -5/Garrison | Identified exit to Factory 5725 | -5/Garrison | Discovered new exit (range 17) 5745 | -5/Garrison | Identified exit to Factory 5797 | -5/Garrison | Triggered checkpoint 5807 | -5/Garrison | Build established: Scavenger-Skirmisher 5879 | -5/Garrison | Triggered checkpoint 5920 | -5/Garrison | Garrison Relay disabled 6060 | -5/Garrison | Discovered exit to Factory (range 13) 6074 | -5/Garrison | Attempted to access garrison exit controls, blocked by remote lockdown 6176 | -5/Garrison | Entered Factory 6176 | -4/Factory | Evolved 2 slots: Utility x1, Weapon x1 6194 | -4/Factory | Identified exit to DSF 6213 | -4/Factory | Entered DSF 6239 | -4/DSF | Additional patrols routed to DSF 6331 | -4/DSF | Lost 7 parts (1p2n2u2w) 6376 | -4/DSF | Lost 4 parts (2n1u1w) 6458 | -4/DSF | Sterilization system engaged 6478 | -4/DSF | Ambient heat levels rising (+10) 6493 | -4/DSF | Ambient heat levels rising (+10) 6508 | -4/DSF | Ambient heat levels rising (+10) 6518 | -4/DSF | Discovered new exit (range 14) 6523 | -4/DSF | Ambient heat levels rising (+10) 6538 | -4/DSF | Ambient heat levels rising (+10) 6553 | -4/DSF | Ambient heat levels rising (+10) 6568 | -4/DSF | Ambient heat levels rising (+10) 6571 | -4/DSF | Entered Research 6571 | -3/Research | Evolved 2 slots: Power x1, Propulsion x1 6593 | -3/Research | Build established: Scavenger-Gunner 6940 | -3/Research | Lost 5 parts (1p1n3u) 7171 | -3/Research | Lost 5 parts (4n1w) 7187 | -3/Research | Spotted Executioner 7188 | -3/Research | Cargo convoy interrupted 7234 | -3/Research | Self-destructed Last Messages --------------- 07220_ Penetrated by Slug. 07221_ Adv. Sensor Array destroyed. 07222_ S-43 Plague destroyed. 07223_ Wave Gun destroyed. 07223_ Myomer Leg destroyed. 07224_ Slug penetrates Wall. 07224_ Penetrated by Slug. 07224_ U-05 Engineer builds a Wall. 07227_ Variable Charge Gun destroyed. 07227_ U-05 Engineer destroyed. 07227_ Lgt. Antimatter Reactor destroyed. 07228_ R-10 Processor collects Xenon Bombardment Thruster. 07228_ Penetrated by Slug. 07231_ Lgt. Antimatter Reactor destroyed. 07231_ R-10 Processor collects Xenon Bombardment Thruster. 07231_ Lgt. Antimatter Reactor destroyed. 07232_ U-05 Engineer builds a Wall. 07233_ Adv. VSS Leg destroyed. Map ----- +----------------------------------------------------+ | ?????????????????????????????????????????????????? | | ?????????????????????????????????????????????????? | | ?????????????????????????????????????????????????? | | ?????????????????????????????????????????????????? | | ?????????????????????????????????????????????????? | | ??????################???????????????????????????? | | ??????? "%" ???????????????????????????? | | ???????# " ?????????????????????????????? | | ???????# ???????????????????????????????? | | #????### ??????????????????????????????????? | | #???## " ##########???????????????????????????? | | #???# # # ! #???????????????????????????? | | ######## # #???????????????????????????? | | # / "" #???????????????????????????? | | + # """ #???????????????????????????? | | # # S" #???????????????????????????? | | # "" # """ ##### ##????????????????????? | | #### "" # """ / ?????????????? | | #??# ^Y" # ## #####????????????????????? | | #### "" # ## ########?????????????????? | | "" ########/## # #?????????????????? | | #??????# # #?????????????????? | | ##??#### # #?????????????????? | | % ] = /R #?????????????????? | | ####+####+####### #####u#xsxE #?????????????????? | | ??#%%% #????#?????# u@%%! #?????????????????? | | ??# #??????????#t;;######?????????????????? | | ??# #??????????# ###??????????????????????? | | ### #??????????# #????????????????????????? | | +% """ #??????????# #????????????????????????? | | ### """ #??????????# #????????????????????????? | | ??# """ #??????????# #????????????????????????? | | ??# #??????????# #????????????????????????? | | ??# #??????????# #?????###########????????? | | ??###############?????# #?????#! #????????? | | ???????# #?????# #?????# #????????? | | ######## / #?????# #?????# """#????????? | | # #?????# #?????# """#????????? | | # =| #######/####### """#????????? | | ####+###### # #????????? | | + [%[ / # #????????? | | # = ### # #????????? | | # #?# #+##+########??????? | | + #?# #% #??????? | | #### #?# !%/ #??????? | | #??# ### = %#! ######## | | ########??# + =!%+[ # | | ??????????#### ### = |######## # | | ?????????????# #?# !*#??????# # """ | | ?????????????? #?# #??????# # """ | +----------------------------------------------------+ Best States ------------- Heat Dissipation 119 Coolant Potential 200 Energy Generation 37 Energy Capacity 315 Matter Stores 300 Matter Capacity 300 Sight Range 20 Robot Scan Range 20 Terrain Scan Density 10 Jamming Range 14 Armor Coverage 600 Resistance: TH 25 Evasion (%) 70 Core Analysis 9 Armor Integrity Analysis 40 Item Schematics ----------------- None Robot Schematics ------------------ None Fabricated ------------ Nothing Repaired ---------- Gauss Cannon | 13% | -7/Factory Alien Tech Used ----------------- None Achievements -------------- None Challenges ------------ None Game ------ Seed SwarmPhysicsTurbovents Manual? 0 Play Time 00:57:06 Cumulative 72.9 hours Start 2025.05.29 @ 14:40:11 End 2025.05.29 @ 18:10:11 Sessions 3 Manual Loads 0 Difficulty Rogue Special Mode None Game No. 126 Rogue 110 Adventurer 16 Explorer 0 Win Type - Total 1 Types 1/0/0/0/0/0/0/0/0/0 Lore% 25 Gallery% 48 Achievement% 48 Wizard Run 0 Options --------- Layout 2 ASCII 0 Keyboard 0 Movement Mouse Keybinds 0 Fullscreen 1 Font 24/Smallcaps Map View 50x44 Zoom Use 0% Tactical HUD 1 Map Filters NONE Filters NONE Steam 1 RUN: 813f0d08-2320-46c9-b367-4a8b1ffefd22